[Event "Bangabandhu Premier Div League 2022"]
[Site "Dhaka"]
[Date "2022.12.10"]
[Round "11.4"]
[White "Mehdi Hasan Parag"]
[Black "Jamal Uddin"]
[Result "1-0"]
[ECO "B12"]
[WhiteElo "2185"]
[BlackElo "2092"]
[Annotator "TA"]
[PlyCount "121"]
[EventDate "2022.12.01"]
[EventCountry "BAN"]
[SourceTitle "playchess.com"]
[Source "ChessBase"]
[SourceQuality "1"]
[TimeControl "40/5400+30:1800+30"]

{[%evp 13,121,17,9,0,75,77,117,43,36,49,43,43,42,48,39,46,48,40,50,0,0,-10,-8,-10,-13,-2,0,0,-5,-18,-12,-127,-89,-89,-77,-88,-77,-85,-62,-74,-73,-152,-81,-86,-77,-77,-92,-124,-129,-141,0,-40,0,0,0,0,0,0,270,252,1137,1116,12837,12838,12838,12839,12839,12839,12840,12840,12841,12841,12841,12840,12841,12837,12843,12843,12844,12842,12842,12841,12845,12840,12844,12843,12844,12844,12845,12845,12845,12846,12846,12847,12847,12844,12845,12845,12846,12846,12847,12847,12847,12847,12848,12848,12850,27999,27999,27999]} 1. e4 {[%emt 0:00:05]} c6 {[%emt 0:00:42][%cal Bc7c6,Bc6c5][%mdl 32]} 2. d4 {[%emt 0:00:09]} d5 {[%emt 0:00:12]} 3. e5 {[%emt 0:00:17]} Bf5 {[%emt 0:00:40]} 4. Nf3 {[%emt 0:00:05]} e6 {[%emt 0:00:47]} 5. Be2 {[%emt 0:00:04]} c5 {[%emt 0:02:05]} 6. Be3 {[%emt 0:00:40]} Qb6 {[%emt 0:01:35]} 7. Nc3 {[%emt 0:00:36]} Nc6 {[%emt 1:27:59]} (7... Qxb2 8. Nb5 $16) 8. O-O {[%emt 0:00:22] B12: Caro-Kann: Advance Variation.} a6 {[%emt 0:00:00]} (8... Qxb2 $11 {keeps the balance.} 9. Nb5 Rc8) 9. Na4 $16 {[%emt 0:00:55][%csl LRb6,LRc5]} Qc7 {[%emt 0:00:00]} 10. Nxc5 {[%emt 0:03:38]} ({Better is} 10. dxc5 $16 Rd8 11. c3) 10... Bxc5 $14 {[%emt 0:00:00]} 11. dxc5 {[%emt 0:00:03]} Nge7 {[%emt 0:02:00][%cal Bg8e7,Be7g6,Bg6f4,Bf4d3][%mdl 32] [#]} 12. c3 $146 {[%emt 1:29:36]} ({Predecessor:} 12. c4 Rd8 13. cxd5 Nxd5 14. Bg5 Rd7 15. Qa4 O-O 16. a3 Rc8 17. Rfd1 h6 18. Bh4 {½-½ (43) Shlegin,S (2344)-Lysenkov,A (2013) Saratov 2012}) 12... O-O {[%emt 0:00:30]} 13. Bd4 {[%emt 0:00:30]} Ng6 {[%emt 0:00:30] Against Nh4} 14. Bd3 {[%emt 0:00:30]} Bg4 {[%emt 0:00:30][%cal Rc6e5,Bf5g4,Bg4f3,Bf3e4][%mdl 32]} 15. Re1 {[%emt 0:00:30]} Ncxe5 {[%emt 0:00:30][%mdl 64]} 16. Rxe5 {[%emt 0:00:30]} (16. Bxe5 $14 Nxe5 17. Rxe5 Bxf3 18. Qe1) 16... Bxf3 $11 {[%emt 0:00:30]} 17. Qe1 {[%emt 0:00:00] Hoping for Bxg6.} Nf4 {[%emt 0:00:30]} (17... Nxe5 18. Bxe5 Qxc5 19. gxf3 $16) 18. Qe3 {[%emt 0:01:00]} Nxd3 {[%emt 0:00:00]} 19. Qxd3 {[%emt 0:00:00]} Be4 {[%emt 0:00:00]} 20. Qg3 {[%emt 0:00:00]} Rae8 {[%emt 0:00:00]} 21. f3 {[%emt 0:00:00]} f6 {[%emt 0:00:00]} 22. b4 {[%emt 0:00:00]} fxe5 {[%emt 0:00:00]} 23. Bxe5 {[%emt 0:00:00]} Qd7 {[%emt 0:00:00] White must now prevent ...Bd3.} 24. fxe4 {[%emt 0:00:00]} dxe4 {[%emt 0:00:00]} 25. Re1 {[%emt 0:00:00]} Rf5 {[%emt 0:00:00]} 26. h4 {[%emt 0:04:00]} g6 {[%emt 0:00:00]} 27. Bd6 {[%emt 0:00:00]} (27. Rxe4 $142 Qd5 28. Re2) 27... Qb5 {[%emt 0:00:00]} (27... Qa4 $142 28. Re2 a5) 28. Rxe4 $17 {[%emt 0:00:00]} Qf1+ {[%emt 0:00:00]} 29. Kh2 {[%emt 0:00:00]} Qf2 {[%emt 0:00:00]} 30. a4 {[%emt 0:00:00] [#]} Qxg3+ $1 {[%emt 0:00:00]} 31. Kxg3 {[%emt 0:00:00][%mdl 4096] Endgame KRR-KRB} Rd5 {[%emt 0:00:00]} ({Black should try} 31... e5 $17 32. Kh2 h5) 32. Rd4 {[%emt 0:00:00]} Kf7 {[%emt 0:00:00]} 33. b5 $1 {[%emt 0:00:00]} axb5 {[%emt 0:00:00]} 34. axb5 {[%emt 0:00:00] Strongly threatening b6.} Ra8 {[%emt 0:00:00]} 35. Rf4+ {[%emt 0:00:00]} Rf5 $2 {[%emt 0:00:00][%mdl 8192] [#] Black is now going downhill.} (35... Kg8 $11 {and Black is okay.}) 36. c6 $1 $18 {[%emt 0:05:00]} bxc6 $2 {[%emt 0:00:00]} (36... Rxf4 $2 37. cxb7 Rfa4 38. bxa8=B Rxa8 39. b6 $18) (36... b6 37. c4 Rxf4 38. Bxf4 (38. Kxf4 Ra4 $11) 38... e5) 37. b6 {[%emt 0:00:30]} e5 {[%emt 0:00:00]} 38. Rxf5+ {[%emt 0:00:00]} gxf5 {[%emt 0:00:00] KR-KB} 39. b7 {[%emt 0:00:00]} Rg8+ {[%emt 0:00:00]} 40. Kf3 {[%emt 0:00:00]} Ke6 {[%emt 0:00:00]} 41. b8=Q {[%emt 0:32:00]} ({Stronger than} 41. b8=B e4+ 42. Kf2 Kd5 $11) 41... Rxb8 {[%emt 0:20:56]} 42. Bxb8 {[%emt 0:00:00] KB-KP} h5 {[%emt 0:00:43]} 43. Ke3 {[%emt 0:00:00]} Kd5 {[%emt 0:01:15]} 44. g3 {[%emt 0:01:30]} e4 {[%emt 0:20:36]} 45. Ba7 {[%emt 0:00:30]} c5 {[%emt 0:00:30]} 46. Bb8 {[%emt 0:00:30]} Kc4 {[%emt 0:00:30]} 47. Be5 {[%emt 0:00:00]} Kb3 {[%emt 0:00:00]} 48. Kd2 {[%emt 0:00:00]} Kb2 {[%emt 0:00:00]} 49. Bd6 {[%emt 0:00:00]} c4 {[%emt 0:00:00]} 50. Be5 {[%emt 0:00:00]} Kb1 {[%emt 0:00:00]} 51. Ke3 {[%emt 0:00:00]} Kc2 {[%emt 0:02:30]} 52. Bd4 {[%emt 0:00:00]} Kd1 {[%emt 0:00:00]} 53. Kf4 {[%emt 0:00:00]} Kd2 {[%emt 0:00:00]} 54. g4 {[%emt 0:04:00]} fxg4 {[%emt 0:00:00]} 55. Kxe4 {[%emt 0:00:00] KB-K3P} Ke2 {[%emt 0:00:00]} 56. Kf4 {[%emt 0:00:00]} Kf1 {[%emt 0:00:00]} 57. Kg5 {[%emt 0:00:00]} g3 {[%emt 0:00:00]} 58. Kxh5 {[%emt 0:00:00]} g2 {[%emt 0:00:00]} 59. Kg4 {[%emt 0:00:00]} g1=Q+ {[%emt 0:04:00]} 60. Bxg1 {[%emt 0:00:00]} Kxg1 {[%emt 0:00:00]} 61. Kf3 {[%emt 0:00:00] Weighted Error Value: White=0.17 (very precise) /Black=0.31} 1-0

[Event "Bangabandhu Premier Div League 2022"]
[Site "Dhaka"]
[Date "2022.12.10"]
[Round "11.5"]
[White "Mohammed Abdul, Malek"]
[Black "Hossain, Enamul"]
[Result "0-1"]
[ECO "D79"]
[WhiteElo "2152"]
[BlackElo "2392"]
[Annotator "TA"]
[PlyCount "124"]
[EventDate "2022.12.01"]
[EventCountry "BAN"]
[SourceTitle "playchess.com"]
[Source "ChessBase"]
[SourceQuality "1"]
[TimeControl "40/5400+30:1800+30"]

{[%evp 17,124,-8,-8,-16,-3,-12,0,0,0,-19,-18,-22,-12,-18,-19,-29,-8,0,0,-91,-40,-62,-70,-80,-82,-75,-74,-76,-67,-395,-385,-385,-363,-389,-248,-323,-268,-281,-267,-269,-266,-267,-265,-266,-271,-272,-262,-373,-358,-440,-393,-457,-596,-596,-584,-568,-465,-737,-416,-416,-416,-416,-416,-416,-416,-416,-416,-416,-416,-416,-416,-416,-416,-424,-416,-416,-416,-416,-416,-416,-416,-426,-416,-29971,-29973,-29978,-29975,-29980,-29981,-29982,-29983,-29983,-29983,-29986,-29987,-29986,-29987,-29987,-29987,-29988,-29989,-29992,-29993,-29993,-29994,-29994,-29995,-29995,-29996]} 1. d4 {[%emt 0:00:09]} Nf6 {[%emt 0:00:12]} 2. g3 {[%emt 0:01:42]} d5 {[%emt 0:02:58]} 3. Bg2 {[%emt 1:30:09]} g6 {[%emt 0:00:32]} 4. Nf3 {[%emt 0:00:00]} Bg7 {[%emt 0:00:12]} 5. O-O {[%emt 0:00:00]} O-O {[%emt 1:29:06]} 6. c4 {[%emt 0:01:30]} c6 {[%emt 0:00:00]} 7. cxd5 {[%emt 0:00:30]} cxd5 {[%emt 0:00:00]} 8. Nc3 {[%emt 0:00:30]} Nc6 {[%emt 0:01:30] 8...Ne4 is the fancy move.} 9. Bf4 {[%emt 0:00:30]} Ne4 {[%emt 0:00:30]} 10. h3 {[%emt 0:00:30] D79: Fianchetto Grünfeld: Symmetrical Variation (6 0-0 c6 7 cxd5 cxd5).} Bf5 {[%emt 0:00:30]} 11. Rc1 {[%emt 0:00:30]} Rc8 {[%emt 0:00:00]} 12. e3 {[%emt 0:00:30] [#] The position is equal.} Qd7 $146 {[%emt 0:01:00]} ({Predecessor:} 12... Nxc3 13. Rxc3 Qd7 14. g4 Be4 15. Qa4 e5 16. dxe5 Nxe5 17. Qxd7 Nxd7 18. Rb3 Nc5 {0-1 (38) Aksoy,A (1778)-Gajcin,M (2017) Batumi 2014}) 13. Kh2 {[%emt 0:00:30]} Nxc3 {[%emt 0:00:00]} 14. Rxc3 {[%emt 0:00:00]} f6 {[%emt 0:00:00][%cal Bf7f6,Bf6f5][%mdl 32]} 15. g4 {[%emt 0:00:00] Against g5} Be4 {[%emt 0:01:30]} 16. Bg3 {[%emt 0:00:00]} e6 {[%emt 0:00:00]} 17. Qa4 {[%emt 0:02:00]} Rcd8 {[%emt 0:01:00]} 18. Qa3 {[%emt 0:00:30] [#]} (18. Nd2 $11 Bxg2 19. Kxg2) 18... e5 {[%emt 0:00:00]} ({Better is} 18... f5 $1 $17 {[%cal Rf5g4] And now ...fxg4 would win.} 19. gxf5 Rxf5) 19. Rd1 {[%emt 0:00:30]} f5 {[%emt 0:01:00]} 20. Nxe5 {[%emt 0:00:00]} (20. Bxe5 $2 fxg4 21. Bxg7 Kxg7 $19) 20... Nxe5 {[%emt 0:00:00]} 21. dxe5 {[%emt 0:00:00]} Bxg2 {[%emt 0:00:00]} 22. Kxg2 {[%emt 0:01:30]} fxg4 {[%emt 0:01:30]} 23. hxg4 {[%emt 0:00:00][%mdl 8192] This move loses the game for White.} (23. Qb4 $15 gxh3+ 24. Kh2) 23... Qxg4 $19 {[%emt 0:00:30]} 24. Rcd3 {[%emt 0:01:00]} Bxe5 {[%emt 0:00:30][%cal Of8f2] ( -> ...Rxf2+!)} 25. f4 {[%emt 0:00:30][%cal Od3d5]} Bf6 {[%emt 0:00:30] White must now prevent ...Bh4. Chess con chili.} (25... Bd6 26. Qb3 Qe2+ 27. Kh3 Qh5+ 28. Kg2 Qe2+ 29. Kh3 Qh5+ 30. Kg2 Qe2+ $11) 26. Qa5 {[%emt 0:00:00]} d4 {[%emt 0:00:30] Strongly threatening ...h5.} (26... Bxb2 27. Rxd5 Rde8 28. R5d3 $17) (26... Bh4 $2 27. Qe1 $19) 27. Qe1 {[%emt 0:01:00]} dxe3 {[%emt 0:00:00]} 28. Qxe3 {[%emt 0:00:30]} Rde8 {[%emt 0:01:00][%cal Bd8e8,Be8e2,Be2b2][%mdl 32]} (28... Qxd1 29. Rxd1 Rxd1 30. Qb3+ (30. Qxa7 $2 Rd2+ 31. Kf3 Rd3+ 32. Kg2 Rd2+ 33. Kf3 Rxb2 $19) 30... Rf7 31. Qxd1 $18) 29. Qf3 {[%emt 0:00:00]} Re2+ {[%emt 0:00:00]} 30. Kf1 {[%emt 0:00:00]} Qxf3+ {[%emt 0:00:00]} 31. Rxf3 {[%emt 0:00:00]} Rxb2 {[%emt 0:00:00]} 32. Rd7 {[%emt 0:02:00]} (32. Rf2 $142) 32... Rf7 {[%emt 0:00:00]} (32... Rxa2 $2 {is the wrong capture.} 33. Rxb7 a5 34. f5 $19) 33. Rfd3 {[%emt 0:00:30]} Rxa2 {[%emt 0:00:00] aiming for ...b5.} 34. Rxf7 {[%emt 0:00:00]} Kxf7 {[%emt 0:00:00][%mdl 4096] Endgame KRB-KRB} ({Wrong is} 34... Ra1+ $2 35. Ke2 Kxf7 36. Rd7+ Ke6 37. Rxh7 $19) 35. Rd7+ {[%emt 0:00:00]} Ke6 {[%emt 0:03:30]} 36. Rxb7 {[%emt 0:00:00]} h5 {[%emt 0:00:00] Hoping for ...a5.} 37. Rb5 {[%emt 0:00:00]} (37. Be1 $142) 37... a6 {[%emt 0:00:00]} 38. f5+ {[%emt 0:00:00]} gxf5 {[%emt 0:00:00]} 39. Rb6+ {[%emt 0:00:00]} Kf7 {[%emt 0:00:00]} 40. Rb7+ {[%emt 0:00:00]} Kg6 {[%emt 0:00:00]} 41. Rb6 {[%emt 0:27:16] Inhibits h4.} Kg5 {[%emt 0:01:55] Inhibits Bh4+.} 42. Rb4 {[%emt 0:00:17]} f4 {[%emt 0:06:52]} 43. Bxf4+ {[%emt 0:02:07]} Kf5 {[%emt 0:00:20]} 44. Bc7 {[%emt 0:00:22]} h4 {[%emt 0:01:36]} 45. Kg1 {[%emt 0:00:39]} Bg5 {[%emt 0:09:54]} 46. Kh1 {[%emt 0:01:06]} Ke6 {[%emt 0:05:09]} 47. Rg4 {[%emt 0:04:13]} Be7 {[%emt 0:00:53]} 48. Re4+ {[%emt 0:00:41]} Kd7 {[%emt 0:00:07]} 49. Bb6 {[%emt 0:00:39]} a5 {[%emt 0:01:42]} 50. Bxa5 {[%emt 0:00:00] [#]} (50. Re5 $19 a4 51. Bc5) 50... Rxa5 {[%emt 0:00:00] KRB-KR. Black mates.} 51. Re1 {[%emt 0:00:00]} Ra2 {[%emt 0:00:00]} 52. Rd1+ {[%emt 0:00:00]} Bd6 {[%emt 0:10:02]} 53. Rd4 {[%emt 0:00:00]} h3 {[%emt 0:00:30]} 54. Rd1 {[%emt 0:00:00]} Ke6 {[%emt 0:00:00]} 55. Rc1 {[%emt 0:00:00]} Kf5 {[%emt 0:00:00]} 56. Rd1 {[%emt 0:00:00]} Bf4 {[%emt 0:01:30]} 57. Rb1 {[%emt 0:04:40]} Rh2+ {[%emt 0:00:00]} 58. Kg1 {[%emt 0:00:30]} Kg4 {[%emt 0:00:00]} 59. Ra1 {[%emt 0:00:30]} Re2 {[%emt 0:01:30]} 60. Kh1 {[%emt 0:00:00]} Be3 {[%emt 0:00:00]} 61. Rf1 {[%emt 0:00:00]} Bf2 {[%emt 0:01:00]} ({Weaker is} 61... Kg3 62. Rf3+ Kg4 63. Rg3+ Kf4 64. Rf3+ Kg5 65. Rg3+ Kf5 66. Rxh3 $15) 62. Kh2 {[%emt 0:00:00]} Kh4 {[%emt 0:00:30] Weighted Error Value: White=0.41/Black=0.17 (very precise)} 0-1

[Event "Bangabandhu Premier Div League 2022"]
[Site "Dhaka"]
[Date "2022.12.10"]
[Round "11.5"]
[White "Mohammad, Shameem"]
[Black "Hrishin, Talukder"]
[Result "1-0"]
[ECO "E18"]
[WhiteElo "1892"]
[BlackElo "1673"]
[Annotator "NA RC COMBH"]
[PlyCount "69"]
[EventDate "2022.11.30"]
[EventType "team-tourn"]
[EventCountry "BAN"]
[SourceTitle "playchess.com"]
[Source "ChessBase"]
[SourceQuality "1"]
[TimeControl "40/5400+30:1800+30"]

1. d4 {[%emt 0:01:24]} Nf6 {[%emt 0:20:38]} 2. Nf3 {[%emt 0:00:39]} b6 {[%emt 0:00:13]} 3. g3 {[%emt 0:00:08]} Bb7 {[%emt 0:00:01]} 4. Bg2 {[%emt 0:00:06]} e6 {[%emt 0:00:46]} 5. c4 {[%emt 0:00:39]} Bb4+ {[%emt 0:00:26]} 6. Bd2 {[%emt 0:00:14]} Be7 {[%emt 0:00:39]} 7. Nc3 {[%emt 0:00:24]} O-O {[%emt 0:00:11]} 8. O-O {[%emt 0:00:07]} c5 {[%emt 0:03:20]} 9. dxc5 {[%emt 0:01:46]} bxc5 {[%emt 0:05:07]} 10. Bf4 {[%emt 0:03:11]} d5 {[%emt 0:05:46]} 11. Ne5 {[%emt 0:14:57]} Nbd7 {[%emt 0:15:05]} 12. Nxd7 {[%emt 0:13:28]} Qxd7 {[%emt 0:00:58]} 13. Qb3 {[%emt 0:02:21]} Rad8 {[%emt 0:12:30]} 14. Rfd1 {[%emt 0:00:55]} Qc6 {[%emt 0:12:53]} 15. Rd2 {[%emt 0:10:32]} Ne4 {[%emt 0:02:46]} 16. Nxe4 {[%emt 0:02:05]} dxe4 {[%emt 0:00:10]} 17. Rad1 {[%emt 0:02:23]} f6 {[%emt 0:12:07]} 18. Rxd8 {[%emt 0:16:38]} Rxd8 {[%emt 0:00:08]} 19. Rxd8+ {[%emt 0:00:06]} Bxd8 $14 {[%emt 0:00:05]} 20. Be3 {[%emt 0:07:43]} Bb6 {[%emt 0:01:46]} 21. Qc2 {[%emt 0:00:26]} a5 {[%emt 0:01:53]} 22. b3 {[%emt 0:00:25]} Bc7 {[%emt 0:00:41]} 23. Bd2 {[%emt 0:01:50]} Qd7 {[%emt 0:02:06]} 24. Bc3 {[%emt 0:02:37]} Qc6 {[%emt 0:00:31]} 25. f3 {[%emt 0:09:44]} exf3 {[%emt 0:01:11]} 26. Bxf3 {[%emt 0:00:07]} Qb6 {[%emt 0:00:51]} 27. Bxa5 {[%emt 0:03:48]} Qxa5 {[%emt 0:00:01]} 28. Bxb7 {[%emt 0:00:02]} Be5 {[%emt 0:00:04]} 29. Kf2 {[%emt 0:02:06]} f5 {[%emt 0:01:30]} 30. a4 {[%emt 0:00:36]} Qc7 {[%emt 0:00:25]} 31. Bf3 {[%emt 0:00:26]} f4 {[%emt 0:00:08]} 32. g4 {[%emt 0:02:42]} Bd4+ {[%emt 0:00:15]} 33. Kg2 {[%emt 0:00:16]} g6 {[%emt 0:01:04]} 34. Qe4 {[%emt 0:00:09]} e5 {[%emt 0:00:40]} 35. Qa8+ {[%emt 0:00:29]} 1-0

[Event "Bangabandhu Premier Div League 2022"]
[Site "Dhaka"]
[Date "2022.12.10"]
[Round "11.6"]
[White "Mohammad Fahad, Rahman"]
[Black "Muthaiah AL"]
[Result "1/2-1/2"]
[ECO "D36"]
[WhiteElo "2380"]
[BlackElo "2454"]
[Annotator "TA"]
[PlyCount "39"]
[EventDate "2022.12.01"]
[EventCountry "BAN"]
[SourceTitle "playchess.com"]
[Source "ChessBase"]
[SourceQuality "1"]
[TimeControl "40/5400+30:1800+30"]

{[%evp 16,39,23,21,28,22,23,12,22,22,34,24,40,33,34,29,32,34,72,0,38,0,73,0,34,0]} 1. d4 {[%emt 0:00:31]} Nf6 {[%emt 0:01:04]} 2. c4 {[%emt 1:30:59]} e6 {[%emt 0:00:30]} 3. Nc3 {[%emt 0:00:00]} d5 {[%emt 1:30:26]} 4. cxd5 {[%emt 0:00:00]} exd5 {[%emt 0:00:00]} 5. Bg5 {[%emt 0:00:00]} c6 {[%emt 0:00:00]} 6. e3 {[%emt 0:00:00]} Be7 {[%emt 0:00:00]} 7. Bd3 {[%emt 0:00:00]} O-O {[%emt 0:00:00]} 8. Qc2 {[%emt 0:03:00]} h6 {[%emt 0:00:00]} 9. Bh4 {[%emt 0:00:00]} Nh5 {[%emt 0:00:00] D36: Queen's Gambit Declined: Exchange Variation: Main line (5 Bg5 c6 6 Qc2).} 10. Bxe7 {[%emt 0:00:00]} Qxe7 {[%emt 0:00:00]} 11. Nge2 {[%emt 0:01:30]} Re8 {[%emt 0:00:00] The position is equal.} 12. O-O {[%emt 0:00:30]} Nf6 {[%emt 0:00:00] [#]} 13. Rab1 $146 {[%emt 0:00:30]} ({Predecessor:} 13. Ng3 Be6 14. Rab1 Nbd7 15. b4 a6 16. Na4 b5 17. Nc5 Nxc5 18. bxc5 Bd7 19. Bf5 {1-0 (47) Hjartarson,J (2470)-Mihailidis,A (2235) Chess.com INT 2022}) 13... Be6 {[%emt 0:05:00]} 14. Nf4 {[%emt 0:00:30]} Nbd7 {[%emt 0:00:00]} 15. b4 a6 {[%emt 0:01:00]} 16. Na4 {[%emt 0:00:00]} Rec8 {[%emt 0:00:00]} 17. Nc3 {[%emt 0:00:00] White has more active pieces.} Re8 {[%emt 0:00:00]} 18. Na4 {[%emt 0:00:00]} Rec8 {[%emt 0:00:00]} 19. Nc3 {[%emt 0:00:00]} Re8 {[%emt 0:00:00]} 20. Na4 {[%emt 0:00:00] Weighted Error Value: White=0.19 (very precise) /Black=0.07 (flawless)} 1/2-1/2

[Event "Bangabandhu Premier Div League 2022"]
[Site "Dhaka"]
[Date "2022.12.10"]
[Round "11.6"]
[White "Masum, Hossain"]
[Black "Habibur Rahman, Sohel"]
[Result "1/2-1/2"]
[ECO "E76"]
[WhiteElo "2103"]
[BlackElo "1871"]
[Annotator "TA"]
[PlyCount "85"]
[EventDate "2022.11.30"]
[EventType "team-tourn"]
[EventCountry "BAN"]
[SourceTitle "playchess.com"]
[Source "ChessBase"]
[SourceQuality "1"]
[TimeControl "40/5400+30:1800+30"]

{[%evp 14,85,47,57,60,61,58,64,57,53,72,81,73,81,83,58,69,66,81,74,84,94,93,87,116,114,92,58,141,91,114,99,103,44,42,46,32,-40,-42,-43,-41,-91,-88,-74,-85,-151,-98,-147,-120,-446,-438,-668,-642,-616,1055,-1470,-1546,-1408,-1384,-1382,-1383,-1155,-1066,-912,-818,-1382,-1382,-1359,-1214,-1128,0,0,0,0]} 1. d4 {[%emt 0:04:10]} Nf6 {[%emt 0:00:27]} 2. c4 {[%emt 0:00:10]} c5 {[%emt 0:00:57]} 3. d5 {[%emt 0:00:01]} d6 {[%emt 0:00:24]} 4. Nc3 {[%emt 0:00:02]} g6 {[%emt 0:00:34]} 5. e4 {[%emt 0:00:03]} Bg7 {[%emt 0:00:24]} 6. f4 {[%emt 0:00:17]} O-O {[%emt 0:02:12]} 7. Nf3 {[%emt 0:00:08]} Bg4 {[%emt 0:02:30]} 8. Bd3 {[%emt 0:00:03]} Nbd7 {[%emt 0:01:25] E76: King's Indian: Four Pawns Attack: Lines specific to 6 Nf3 move-order.} 9. h3 {[%emt 0:00:21]} Bxf3 {[%emt 0:00:35]} 10. Qxf3 {[%emt 0:00:02]} a6 {[%emt 0:00:34] White is slightly better.} 11. Bd2 {[%emt 0:05:24]} Qc7 {[%emt 0:01:47]} 12. O-O {[%emt 0:04:58] [#]} b5 $146 {[%emt 0:02:48]} ({Predecessor:} 12... Kh8 13. a4 a5 14. Nb5 Qd8 15. Bc3 Ne8 16. Bxg7+ Kxg7 17. Rae1 f6 18. h4 Nc7 19. Nc3 {1-0 (59) Kucharska,H (1687)-Gornisiewicz,N (1485) Sypniewo 2022}) 13. b3 {[%emt 0:03:12]} (13. cxb5 c4 14. Bc2 axb5 $11) 13... b4 {[%emt 0:04:29]} 14. Na4 {[%emt 0:01:27]} a5 {[%emt 0:04:05]} 15. Rae1 {[%emt 0:00:17]} Rab8 {[%emt 0:06:08]} 16. Bc1 {[%emt 0:00:59]} Nb6 {[%emt 0:02:49]} 17. Nxb6 {[%emt 0:00:03]} Rxb6 {[%emt 0:00:22][%cal Bb8b6,Bb6a6,Ba6a2,Ba2b2][%mdl 32]} 18. Bb2 {[%emt 0:04:57]} Nd7 {[%emt 0:03:52]} 19. Bxg7 {[%emt 0:06:17]} Kxg7 {[%emt 0:00:10]} 20. Qe3 {[%emt 0:00:01]} f6 {[%emt 0:06:53]} (20... e5 $14) 21. Be2 {[%emt 0:00:38]} (21. h4 $142 $1) 21... Ra6 {[%emt 0:03:46]} 22. Bg4 {[%emt 0:01:22]} a4 {[%emt 0:07:35]} 23. Bxd7 {[%emt 0:00:41] White is more active.} (23. h4 $16) 23... Qxd7 $14 {[%emt 0:00:03]} 24. e5 {[%emt 0:00:04]} axb3 {[%emt 0:05:11]} 25. e6 {[%emt 0:02:33]} ({White should play} 25. axb3 $14 Raa8 26. Rf2) 25... Qa7 $15 {[%emt 0:01:48]} 26. axb3 {[%emt 0:00:24]} Ra2 {[%emt 0:02:10]} 27. f5 {[%emt 0:02:00]} (27. g4 $15) 27... Qa3 $17 {[%emt 0:01:03]} 28. fxg6 {[%emt 0:03:29]} hxg6 {[%emt 0:02:18]} 29. Qg3 {[%emt 0:23:41]} (29. Rf4 $142) 29... Rh8 {[%emt 0:07:22]} (29... Ra8 $142 {Strongly threatening ...Rc2.} 30. Re4 Ra1 31. Rxa1 Qxa1+ 32. Kh2 Qb2) 30. Re4 {[%emt 0:01:35]} (30. Kh2 $142) 30... Rb2 {[%emt 0:03:36]} 31. Rg4 $2 {[%emt 0:00:30][%mdl 8192]} (31. Re3 $17 {is a better chance.}) 31... Rh6 $19 {[%emt 0:03:39]} (31... Qxb3 32. Rxg6+ Kf8 33. Rfxf6+ $1 {[%mdl 512]} exf6 34. Qxd6+ Ke8 35. Qd7+ Kf8 36. Qf7#) 32. Rxf6 {[%emt 0:01:33]} (32. Rgf4 $142 Qxb3 33. Qxb3 Rxb3 34. Rc1) 32... exf6 {[%emt 0:09:03]} (32... Kxf6 33. Qf4+ Kg7 34. Qf7+ Kh8 35. Qe8+ Kg7 36. Qf7+ Kh8 37. Qf8+ Kh7 38. Qxe7+ Kh8 39. Qe8+ (39. Qxd6 Rb1+ 40. Kh2 Qc1 $11) 39... Kh7 40. Qf7+ Kh8 41. Qf6+ (41. Rxg6 Qa1+ 42. Qf1 Qxf1+ 43. Kxf1 Rxg6 44. e7 Rg8 45. h4 Rxb3 46. Ke2 Re8 47. h5 Ra3 48. g4 Rxe7+ 49. Kf1 b3 50. g5 b2 51. Kg2 b1=Q 52. Kf2 Qe1+ 53. Kg2 Re2#) 41... Kh7 42. Qf7+ Kh8 43. e7 (43. Rxg6 Qa1+ 44. Qf1 Qxf1+ 45. Kxf1 Rxg6 46. e7 Rg8 47. h4 Re8 48. Kg1 Rxe7 49. h5 Rg7 50. Kh2 Rbxg2+ 51. Kh3 Rg1 52. Kh2 R1g5 53. h6 Rh5#) 43... Qa1+ 44. Qf1 $18 (44. Kh2 Rxh3+ 45. Kxh3 Qh1+ 46. Kg3 Rxg2+ 47. Kf3 Qf1+ 48. Ke4 Qe2+ 49. Kf4 Rxg4#)) 33. Qxd6 {[%emt 0:00:12]} Rxh3 $4 {[%emt 0:08:18][%mdl 8192]} 34. Qc7+ $4 {[%emt 0:04:15][%mdl 8192]} (34. Qe7+ $18 Kh6 35. Qf8+ Kh5 36. Qh8+ Kxg4 37. Qxh3+ Kf4 38. Qf3+ Kg5 39. Qe3+ Kh5 40. e7 Rxb3 41. Qe2+ (41. e8=Q Rxe3 42. Qh8+ Kg4 43. Kf2 Qc1) 41... Kg5 42. e8=Q Qc1+ 43. Qe1 Qxe1+ 44. Qxe1) 34... Kh6 {[%emt 0:02:48][%cal Ra3a1]} 35. Qf4+ {[%emt 0:00:31] [#]} Kh5 $1 {[%emt 0:02:04] ( -> ...Qa1+)} (35... Kg7 36. Rxg6+ (36. gxh3 $2 Qa1+ 37. Qf1 Rb1 $19) (36. Qc7+ $2 Kh6 $19) 36... Kh7 37. Rh6+ Rxh6 38. Qc7+ Kh8 39. Qd8+ Kh7 40. Qc7+ Kh8 41. Qd8+ Kh7 42. Qc7+ $11) 36. gxh3 {[%emt 0:25:10][%mdl 4096] Endgame KQR-KQR} Qa1+ {[%emt 0:00:54]} 37. Qf1 {[%emt 0:00:05]} Rb1 {[%emt 0:00:22]} 38. Rf4 {[%emt 0:00:12]} g5 {[%emt 0:01:58]} 39. e7 {[%emt 0:01:59]} Rxf1+ {[%emt 0:01:00]} (39... gxf4 40. e8=Q+ (40. e8=B+ {is a self mate.} Kh4) 40... Kh6 41. Qh8+ Kg6 42. Qe8+ (42. Qg8+ Kh6 $11) 42... Kh6 43. Qf8+ (43. Qh8+ Kg6 $11) 43... Kh5 44. Qf7+ (44. Qh8+ Kg6 $11) 44... Kh6 45. Qxf6+ (45. Qf8+ Kh7 $11) 45... Qxf6 46. Qxb1 $11) 40. Rxf1 {[%emt 0:00:03]} Qe5 {[%emt 0:00:27]} 41. d6 {[%emt 0:30:26]} Qe6 $2 {[%emt 0:31:24]} (41... Qxd6 42. e8=Q+ (42. e8=B+ $2 {too greedy.} Kh4 $19) 42... Kh6 43. Kg2 $18) (41... Qe3+ $19 42. Kg2 Kg6) 42. Rxf6 $11 {[%emt 0:01:20][%mdl 64] The board is on fire.} Qe1+ {[%emt 0:00:32]} 43. Kg2 {[%emt 0:00:52] Weighted Error Value: White=0.83/Black=0.53} 1/2-1/2